bitfinex/quotes_ETHUSD_20251122
["timestamp","ask_amount","ask_price","bid_price","bid_amount"]
[1763799110586,3.46537591,2750.0,2749.3,0.466]
[1763799110786,0.5706311,2750.0,2749.3,0.466]
[1763799111161,0.52445619,2749.9,2749.0,0.467]
[1763799111419,0.5706311,2750.0,2749.0,0.467]
[1763799111420,0.123,2749.8,2749.0,0.467]
[1763799112005,0.123,2749.8,2749.7,0.4779]
[1763799113275,0.5445,2749.8,2749.4,0.466]
[1763799113795,1.0229,2749.8,2749.2,0.466]
[1763799114898,0.123,2749.8,2749.7,0.4779]
[1763799115197,0.123,2749.8,2749.2,0.466]
[1763799115613,0.123,2749.8,2749.7,0.4779]
[1763799115914,0.123,2749.8,2749.2,0.466]
[1763799117714,0.123,2749.8,2749.7,0.4779]
[1763799120225,0.5445,2749.8,2749.2,0.466]
[1763799121625,0.0454595,2749.7,2749.0,0.001]
[1763799121925,0.123,2749.8,2749.1,0.466]
[1763799122290,0.123,2749.8,2749.7,0.4779]
[1763799124832,0.123,2749.8,2749.4,0.466]
[1763799124833,0.5445,2749.8,2749.4,0.466]
[1763799126219,0.123,2749.8,2749.4,0.466]
[1763799127491,0.123,2749.8,2749.7,0.4853]
[1763799127838,0.123,2749.8,2749.7,0.962]
[1763799128527,0.4887,2750.3,2749.7,0.962]
[1763799128528,0.123,2750.3,2749.7,0.962]
[1763799128821,0.123,2750.3,2749.8,0.4767]
[1763799129390,0.123,2750.3,2750.2,0.4853]
[1763799129618,0.123,2750.3,2749.8,0.4767]
[1763799129619,0.5349,2750.3,2749.8,0.4767]
[1763799130022,0.123,2750.3,2750.2,0.4853]
[1763799130208,0.002,2750.5,2750.2,0.5864]
[1763799130410,0.002,2750.5,2750.2,0.1011]
[1763799130615,0.002,2750.5,2750.0,0.186]
[1763799130925,0.4907,2750.5,2750.0,0.186]
[1763799131108,0.4907,2750.5,2750.0,0.6627]
[1763799131306,0.002,2750.5,2750.0,0.6627]
[1763799131613,0.002,2750.5,2750.4,0.4853]
[1763799131820,0.002,2750.5,2750.4,0.962]
[1763799132339,0.002,2750.5,2750.4,0.4853]
[1763799133122,0.002,2750.5,2750.1,0.4767]
[1763799133351,0.002,2750.5,2750.4,0.4853]
[1763799134111,0.002,2750.5,2750.4,0.962]
[1763799137218,0.002,2750.5,2750.4,1.86899264]
[1763799137422,0.002,2750.5,2750.4,5.69172668]
[1763799137628,0.002,2750.5,2750.4,6.09723068]
[1763799137807,0.002,2750.8,2750.5,0.405504]
[1763799138022,0.002,2750.8,2750.7,0.4853]
[1763799138447,0.002,2750.8,2750.7,0.962]
[1763799139651,0.002,2750.8,2750.7,1.54139926]
[1763799141321,0.002,2750.8,2750.7,0.962]
[1763799144031,0.002,2750.8,2750.7,0.4853]
[1763799144352,0.002,2750.8,2750.7,0.962]
[1763799144754,0.002,2750.8,2750.7,0.4853]
[1763799145544,0.4188,2750.8,2750.7,0.4853]
[1763799145747,0.4188,2750.8,2750.4,0.78659926]
[1763799145948,0.4188,2750.8,2750.5,0.4767]
[1763799145949,0.002,2750.8,2750.5,0.4767]
[1763799146255,0.002,2750.8,2750.7,0.4853]
[1763799147350,0.002,2750.8,2750.7,0.962]
[1763799148944,0.4188,2750.8,2750.3,0.123]
[1763799149273,0.002,2750.8,2750.7,0.4853]
[1763799150231,0.002,2750.8,2750.7,0.962]
[1763799155281,0.002,2750.8,2750.7,0.4853]
[1763799155683,0.002,2750.8,2750.7,0.9499]
[1763799156785,0.4164,2750.8,2750.4,0.5766]
[1763799158254,0.4164,2750.8,2750.1,0.4536]
[1763799158553,0.9076,2750.8,2750.1,0.4536]
[1763799158760,0.4912,2750.7,2750.1,0.4536]
[1763799159066,0.4912,2750.7,2750.0,0.309]
[1763799159279,0.4912,2750.7,2750.0,0.7626]
[1763799160305,0.002,2750.8,2750.6,0.492]
[1763799160452,0.002,2750.8,2750.7,0.492]
[1763799160666,0.002,2750.8,2750.7,0.9456]
[1763799165794,0.002,2750.8,2750.7,0.492]
[1763799166870,0.4843,2750.8,2750.5,0.4536]
[1763799167272,0.002,2750.8,2750.7,0.492]
[1763799167671,0.002,2750.8,2750.7,0.9456]
[1763799167905,0.4286,2750.8,2750.4,0.001]
[1763799168126,0.9192,2750.8,2750.4,0.001]
[1763799169530,0.0049,2750.5,2750.4,0.001]
[1763799169901,0.4961,2750.5,2750.4,0.001]
[1763799170253,0.002,2750.8,2750.4,0.493]
[1763799170408,0.4932,2750.8,2750.4,0.493]
[1763799171113,0.4932,2750.8,2750.4,0.001]
[1763799171632,0.4266,2750.5,2750.4,0.001]
[1763799171802,0.4932,2750.8,2750.4,0.001]
[1763799172129,0.4932,2750.8,2750.4,0.493]
[1763799172335,0.002,2750.8,2750.4,0.9466]
[1763799172743,0.4266,2750.5,2750.4,0.001]
[1763799174709,0.9172,2750.5,2750.4,0.001]
[1763799174946,0.4266,2750.5,2750.4,0.001]
[1763799175306,0.002,2750.8,2750.4,0.493]
[1763799175637,0.002,2750.8,2750.4,0.9466]
[1763799175840,0.002,2750.8,2750.4,0.493]
[1763799176041,0.002,2750.8,2750.5,0.4536]
[1763799176342,0.002,2750.8,2750.7,0.492]
[1763799177247,0.002,2750.8,2750.7,0.9456]
[1763799177433,0.002,2750.8,2750.7,0.492]
[1763799178721,0.002,2750.8,2750.7,0.9456]
[1763799181526,0.002,2750.8,2750.7,0.492]
[1763799182234,0.002,2750.8,2750.7,0.9456]
[1763799183033,0.002,2750.8,2750.7,0.94489306]
[1763799183250,0.002,2750.8,2750.7,0.9456]
[1763799185182,0.002,2750.8,2750.7,0.492]
[1763799185540,0.002,2750.8,2750.7,0.9778]
[1763799186047,0.002,2750.8,2750.5,0.123]
[1763799186048,0.4684,2750.8,2750.5,0.123]
[1763799187557,0.0047,2750.6,2750.4,0.001]
[1763799187736,0.4618,2750.5,2750.4,0.001]
[1763799189872,0.9374,2750.5,2750.4,0.001]
[1763799191385,4.83750365,2750.5,2750.4,0.001]
[1763799191685,9.61033088,2750.5,2750.4,0.001]
[1763799191978,4.77282723,2750.2,2750.1,0.001]
[1763799192279,1.31249664,2750.1,2749.8,0.001]
[1763799192443,3.91753059,2749.9,2749.8,0.001]
[1763799192860,0.9328,2749.9,2749.8,0.001]
[1763799193252,0.4572,2749.9,2749.8,0.001]
[1763799195455,0.4756,2750.5,2749.8,0.9628]
[1763799195654,0.123,2750.4,2750.0,0.476]
[1763799196072,0.5986,2750.4,2750.0,0.476]
[1763799196241,0.5986,2750.4,2749.8,0.4868]
[1763799196582,0.5986,2750.4,2749.8,0.001]
[1763799196583,0.4756,2750.3,2749.8,0.001]
[1763799197681,0.123,2750.4,2749.8,0.4868]
[1763799198187,0.5986,2750.4,2749.8,0.4868]
[1763799199888,0.002,2750.8,2749.8,0.4868]
[1763799200071,0.5986,2750.7,2749.8,0.4868]
[1763799200677,0.123,2750.7,2749.8,0.4868]
[1763799200999,0.4756,2750.6,2749.8,0.4868]
[1763799203802,0.4633,2749.9,2749.8,0.001]
[1763799204099,0.9388,2749.9,2749.8,0.001]
[1763799204300,1.344304,2749.9,2749.8,0.001]
[1763799204598,0.405504,2749.8,2749.5,0.001]
[1763799204762,0.405504,2749.8,2749.4,0.001]
[1763799204763,1.77379664,2749.6,2749.4,0.001]
[1763799204969,0.533104,2749.5,2749.4,0.001]
[1763799205182,1.008704,2749.5,2749.4,0.001]
[1763799205800,0.0046,2749.5,2749.4,0.001]
[1763799206006,0.4613,2749.5,2749.4,0.001]
[1763799206207,0.9368,2749.5,2749.4,0.001]
[1763799207682,0.4613,2749.5,2749.4,0.001]
[1763799207875,0.9368,2749.5,2749.4,0.001]
[1763799208099,0.4613,2749.5,2749.4,0.001]
[1763799208299,0.9368,2749.5,2749.4,0.001]
[1763799209283,1.50753624,2749.5,2749.4,0.001]
[1763799209714,1.03203624,2749.5,2749.4,0.001]
[1763799210416,0.57073624,2749.5,2749.4,0.001]
[1763799210816,0.57073624,2749.5,2749.4,0.477]
[1763799212817,0.123,2749.8,2749.4,0.9628]
[1763799212986,0.57066507,2749.7,2749.4,0.9628]
[1763799213198,0.57066507,2749.7,2749.6,0.476]
[1763799213403,0.123,2749.8,2749.6,0.476]
[1763799213622,0.4613,2749.7,2749.4,0.001]
[1763799214208,0.4664,2749.5,2749.4,0.001]
[1763799216007,0.9369,2749.5,2749.4,0.001]
[1763799216415,1.50759512,2749.5,2749.4,0.001]
[1763799217936,1.55305793,2749.5,2749.4,0.001]
[1763799218238,2.00929899,2749.5,2749.4,0.001]
[1763799218836,2.0547618,2749.5,2749.4,0.001]
[1763799219740,2.00929899,2749.5,2749.4,0.001]
[1763799220035,1.50759512,2749.5,2749.4,0.001]
[1763799221481,0.57069512,2749.5,2749.4,0.4881]
[1763799224936,0.57069512,2749.5,2749.4,0.9821]
[1763799228504,0.57069512,2749.5,2749.4,0.4881]
[1763799229574,0.57069512,2749.5,2749.4,0.9821]
[1763799232019,0.57069512,2749.5,2749.4,0.001]
[1763799232202,1.05139512,2749.5,2749.4,0.001]
[1763799232366,0.57069512,2749.5,2749.4,0.4881]
[1763799232563,0.57069512,2749.5,2749.4,0.9821]
[1763799233298,0.57069512,2749.5,2749.4,0.4881]
[1763799233499,1.50739512,2749.5,2749.4,0.001]
[1763799233905,1.02469512,2749.5,2749.4,0.001]
[1763799234969,0.57069512,2749.5,2749.4,0.9821]
[1763799235912,0.123,2749.8,2749.4,0.9821]
[1763799236118,0.123,2749.8,2749.7,0.4871]
[1763799239011,0.407504,2750.8,2749.7,0.4871]
[1763799239012,0.123,2750.4,2749.7,0.4871]
[1763799239200,0.606,2750.4,2749.4,0.001]
[1763799239401,0.454,2749.8,2749.4,0.4432]
[1763799239792,0.454,2749.8,2749.4,0.001]
[1763799241486,0.454,2749.8,2749.4,0.495]
[1763799241916,0.9367,2749.8,2749.4,0.001]
[1763799242315,0.4563,2749.7,2749.4,0.001]
[1763799242518,0.483,2750.3,2749.4,0.001]
[1763799242703,0.33758755,2750.2,2749.5,0.494]
[1763799242895,0.483,2750.3,2749.5,0.494]
[1763799243924,0.123,2750.4,2750.2,0.4871]
[1763799244715,0.123,2750.4,2750.3,0.4871]
[1763799245723,0.123,2750.4,2749.8,0.1885]
[1763799245724,0.577,2750.4,2749.8,0.1885]
[1763799245924,0.577,2750.4,2749.4,0.124]
[1763799245925,0.0248,2750.2,2749.4,0.124]
[1763799246217,0.0248,2750.2,2749.4,0.5831]
[1763799246218,0.4626,2750.1,2749.4,0.5831]
[1763799249721,1.03317893,2750.1,2749.4,0.5831]
[1763799250224,0.4626,2750.1,2749.4,0.5831]
[1763799250425,0.123,2750.4,2749.5,0.4591]
[1763799250629,0.4626,2750.3,2749.4,0.124]
[1763799250837,0.4626,2750.3,2749.4,0.55359245]
[1763799250838,0.002,2750.1,2749.4,0.55359245]
[1763799251041,0.002,2750.1,2749.4,1.01269245]
[1763799251708,0.002,2750.1,2749.5,0.4591]
[1763799252555,0.002,2750.1,2750.0,0.4888]
[1763799252721,0.002,2750.1,2750.0,1.36786245]
[1763799255655,0.4762,2750.1,2750.0,0.90876245]
[1763799255947,0.002,2750.1,2750.0,0.4888]
[1763799256250,0.4762,2750.1,2749.7,0.5821]
[1763799257340,0.0047,2749.8,2749.5,0.123]
[1763799257710,0.4646,2750.1,2749.7,0.4888]
[1763799258985,0.002,2750.1,2749.7,0.9479]
[1763799259490,0.002,2750.1,2750.0,0.4888]
[1763799259689,0.002,2750.1,2749.5,0.123]
[1763799259690,0.002,2750.1,2749.5,4.3841]
[1763799259872,0.002,2750.1,2749.6,0.43851]
[1763799260073,0.002,2750.1,2750.0,0.4888]
[1763799262605,0.002,2750.1,2750.0,0.9479]
[1763799265484,0.002,2750.1,2750.0,0.4888]
[1763799267626,0.002,2750.1,2750.0,0.9479]
[1763799271234,0.002,2750.1,2750.0,0.97609]
[1763799272003,0.002,2750.1,2750.0,1.43519]
[1763799273250,0.4762,2750.1,2749.6,0.43851]
[1763799273416,0.4696,2749.7,2749.5,3.803]
[1763799273618,0.0094,2749.6,2749.5,3.803]
[1763799275011,0.4626,2749.9,2749.5,3.803]
[1763799275212,0.4626,2749.9,2749.5,4.1835]
[1763799276850,0.4626,2749.9,2749.5,0.3815]
[1763799277022,0.502,2750.1,2749.5,0.4958]
[1763799277264,0.502,2750.1,2749.5,0.001]
[1763799277481,0.502,2750.1,2749.5,0.4958]
[1763799277482,0.002,2750.1,2749.5,0.4958]
[1763799277775,0.002,2750.1,2749.5,0.001]
[1763799278191,0.002,2750.1,2749.5,0.4958]
[1763799278853,0.502,2750.1,2749.5,0.4958]
[1763799280893,0.002,2750.1,2750.0,0.4834]
[1763799282793,0.002,2750.1,2750.0,0.9782]
[1763799283496,0.002,2750.1,2750.0,1.45937964]
[1763799287190,0.002,2750.1,2750.0,2.36637228]
[1763799288095,0.002,2750.1,2750.0,6.16837228]
[1763799289174,0.002,2750.1,2750.0,10.21023991]
[1763799289368,0.002,2750.1,2750.0,6.40823991]
[1763799289569,0.002,2750.4,2750.3,4.74299264]
[1763799289797,0.002,2750.6,2750.4,0.405504]
[1763799290091,0.002,2750.6,2750.5,0.888904]
[1763799290291,0.002,2750.6,2750.5,2.43636332]
[1763799290494,0.002,2750.6,2750.5,6.14695972]
[1763799290874,0.002,2750.6,2750.5,2.43636332]
[1763799291194,0.002,2750.6,2750.5,3.51031639]
[1763799291701,0.002,2750.6,2750.5,2.43636332]
[1763799294997,0.002,2750.6,2750.5,1.53605932]
[1763799295181,0.002,2750.6,2750.5,2.00819264]
[1763799296508,0.4959,2750.6,2750.3,0.1935]
[1763799296681,0.002,2750.6,2750.5,0.123]
[1763799296863,0.002,2750.6,2750.5,0.6064]
[1763799297979,0.002,2750.6,2750.5,1.1012]
[1763799298902,0.002,2750.6,2750.5,0.6064]
[1763799301429,0.002,2750.6,2750.0,0.48117964]
[1763799301430,0.9129,2750.6,2750.0,0.48117964]
[1763799301584,0.4077,2750.1,2749.8,0.123]
[1763799301919,0.009,2749.9,2749.5,0.001]
[1763799302122,0.5,2750.2,2749.5,0.001]
[1763799302282,0.4118,2749.6,2749.5,0.001]
[1763799302776,0.9109,2749.6,2749.5,0.001]
[1763799307728,0.4118,2749.6,2749.5,0.001]
[1763799308449,0.123,2750.2,2749.5,0.4559]
[1763799308450,0.486,2750.1,2749.5,0.4559]
[1763799308806,1.05658619,2750.1,2749.5,0.4559]
[1763799309130,0.4256,2749.6,2749.5,0.001]
[1763799310029,0.4854,2749.9,2749.5,0.001]
[1763799310326,0.609,2750.2,2749.5,0.9191]
[1763799310499,0.609,2750.2,2749.5,0.4559]
[1763799310696,0.123,2750.2,2749.5,0.4559]
[1763799310902,0.486,2750.4,2749.6,0.4632]
[1763799311407,0.486,2750.4,2749.5,0.5789]
[1763799311408,0.486,2750.4,2749.5,0.124]
[1763799311629,0.4256,2749.7,2749.5,0.124]
[1763799312006,0.486,2750.4,2749.6,0.9181]
[1763799312239,0.488,2750.6,2749.6,0.9181]
[1763799312717,0.488,2750.6,2749.5,0.124]
[1763799312718,0.4256,2749.7,2749.5,0.001]
[1763799312916,0.04544628,2750.5,2749.5,0.001]
[1763799313133,0.486,2750.4,2749.5,0.001]
[1763799313333,0.4256,2749.6,2749.5,0.001]
[1763799313910,0.4262,2749.6,2749.5,0.001]
[1763799315330,0.002,2750.6,2749.5,0.4559]
[1763799315534,0.486,2750.0,2749.5,0.4559]
[1763799316245,0.486,2750.0,2749.5,0.001]
[1763799316483,0.4256,2749.6,2749.5,0.001]
[1763799316916,0.486,2750.0,2749.5,0.001]
[1763799318159,0.4256,2749.6,2749.5,0.001]
[1763799319009,0.4854,2749.8,2749.5,0.80252627]
[1763799319353,0.486,2750.1,2749.6,3.46326265]
[1763799319849,0.4256,2749.7,2749.6,3.46326265]
[1763799320050,0.4256,2749.7,2749.5,0.34762627]
[1763799320343,0.4903,2749.6,2749.5,0.34762627]
[1763799321250,0.0043,2749.6,2749.5,0.34762627]
[1763799327702,0.4903,2749.6,2749.5,0.001]
[1763799329583,1.39729264,2749.6,2749.5,0.001]
[1763799329880,1.73385012,2749.6,2749.5,0.001]
[1763799331349,1.39729264,2749.6,2749.5,0.001]
[1763799331550,1.73370782,2749.6,2749.5,0.001]
[1763799331746,2.28028492,2749.6,2749.5,0.001]
[1763799332143,1.0368771,2749.6,2749.5,0.001]
[1763799332377,0.4903,2749.6,2749.5,0.001]
[1763799333045,0.4903,2749.6,2749.2,3.44856275]
[1763799333247,0.3983,2749.4,2749.2,3.44856275]
[1763799333444,0.123,2749.8,2749.2,3.44856275]
[1763799333679,0.123,2749.8,2749.1,0.1226]
[1763799333680,0.123,2749.8,2749.4,3.46326265]
[1763799333982,0.609,2749.8,2749.2,3.46326265]
[1763799334279,0.4026,2749.4,2749.2,3.46326265]
[1763799334496,0.486,2749.7,2749.2,3.82188892]
[1763799335350,0.609,2750.2,2749.6,0.4549]
[1763799335547,0.486,2750.2,2749.6,0.4549]
[1763799335772,0.4865,2750.1,2749.4,3.46326265]
[1763799335980,0.4021,2749.7,2749.4,3.46326265]
[1763799336274,0.4021,2749.7,2749.4,3.89177154]
[1763799336683,0.4865,2750.1,2749.6,0.4569]
[1763799337465,0.4865,2750.1,2749.6,3.92016265]
[1763799337665,0.6095,2750.3,2749.6,3.92016265]
[1763799337986,0.6095,2750.3,2749.6,4.8624298]
[1763799338975,0.4865,2750.2,2749.6,4.8624298]
[1763799339192,0.002,2750.1,2749.6,4.3673298]
[1763799339495,0.002,2750.1,2749.5,0.001]
[1763799339496,0.4021,2749.7,2749.5,0.001]
[1763799339659,0.004,2749.6,2749.5,0.001]
[1763799340300,0.4905,2749.6,2749.5,0.001]
[1763799342288,0.123,2749.8,2749.5,0.001]
[1763799342494,0.4665,2749.6,2749.5,0.001]
[1763799343272,0.8884,2749.6,2749.5,0.001]
[1763799344307,0.4665,2749.6,2749.5,0.001]
[1763799344874,0.002,2750.1,2749.5,0.001]
[1763799344875,0.4865,2749.9,2749.5,3.46426265]
[1763799345089,0.002,2750.1,2749.5,0.80432627]
[1763799345286,0.4885,2750.1,2749.5,0.4579]
[1763799345494,0.4021,2749.6,2749.5,0.001]
[1763799346897,0.4885,2750.1,2749.5,0.4579]
[1763799347217,0.002,2750.1,2749.5,4.41626265]
[1763799348611,0.4885,2750.1,2749.5,0.4579]
[1763799348776,0.4885,2750.1,2749.5,0.001]
[1763799349607,0.002,2750.1,2749.5,4.30578891]
[1763799349904,0.4885,2750.1,2749.5,4.30578891]
[1763799350105,0.4885,2750.1,2749.5,0.84252626]
[1763799351085,0.4885,2750.1,2749.5,0.34742626]
[1763799351809,0.002,2750.1,2749.7,3.46326265]
[1763799351983,0.002,2750.1,2749.8,0.39583626]
[1763799352188,0.002,2750.1,2749.6,0.4951]
[1763799353531,0.002,2750.1,2750.0,0.4569]
[1763799354615,0.8897,2750.1,2749.5,4.42878891]
[1763799354820,0.0049,2749.9,2749.5,4.42878891]
[1763799355020,0.002,2750.1,2749.6,0.4951]
[1763799355221,0.002,2750.1,2749.8,0.4569]
[1763799355829,0.002,2750.1,2750.0,0.4569]
[1763799358599,0.9019,2750.1,2749.7,0.44287889]
[1763799359022,0.4334,2750.0,2749.7,0.44287889]
[1763799359741,0.002,2750.1,2750.0,0.90699264]
[1763799359940,0.002,2750.1,2750.0,2.51421817]
[1763799360435,0.002,2750.1,2750.0,2.65993102]
[1763799360737,0.4156,2750.1,2750.0,0.53222553]
[1763799361040,0.4156,2750.1,2749.8,1.02999264]
[1763799361936,0.9013,2750.1,2749.8,0.90699264]
[1763799362139,0.0049,2749.9,2749.6,0.123]
[1763799362437,0.4865,2750.0,2749.5,3.58726265]
[1763799362935,0.4865,2750.0,2749.5,4.08236265]
[1763799363143,0.4865,2750.0,2749.5,0.90433627]
[1763799363445,0.4865,2750.0,2749.5,0.40923627]
[1763799364638,0.4136,2749.6,2749.5,0.001]
[1763799365748,0.002,2750.1,2749.5,0.4833]
[1763799365932,0.4215,2749.6,2749.5,0.001]
[1763799366240,0.4779,2750.0,2749.5,0.4833]
[1763799366420,0.4779,2750.0,2749.5,0.9615]
[1763799367959,0.002,2750.1,2749.5,0.4833]
[1763799368165,0.002,2750.1,2749.6,0.89770135]
[1763799368324,0.002,2750.1,2749.7,0.4782]
[1763799368674,0.002,2750.1,2750.0,0.4823]
[1763799369422,0.002,2750.1,2750.0,4.67221346]
[1763799369847,0.002,2750.1,2750.0,4.79521346]
[1763799370032,0.002,2750.1,2750.0,10.22359508]
[1763799370432,0.002,2750.1,2750.0,10.36928617]
[1763799370755,0.002,2750.4,2750.0,14.0056498]
[1763799370954,0.002,2750.4,2750.3,5.6975101]
[1763799371554,0.002,2750.4,2750.3,6.1757101]
[1763799371859,0.002,2750.4,2750.3,2.32086365]
[1763799372061,0.002,2750.4,2750.3,1.70329264]
[1763799372355,0.4308,2750.4,2750.0,0.62521244]
[1763799372654,0.4308,2750.4,2750.1,0.123]
[1763799373155,0.4308,2750.4,2749.9,0.191]
[1763799373460,0.4241,2750.0,2749.6,4.13121481]
[1763799373658,0.4241,2750.0,2749.7,0.123]
[1763799374028,0.002,2750.4,2749.7,0.123]
[1763799374029,0.009,2749.8,2749.7,0.123]
[1763799374321,0.009,2749.8,2749.5,0.001]
[1763799374538,0.42,2749.7,2749.5,0.001]
[1763799375853,0.0131,2749.6,2749.5,0.001]
[1763799378167,0.4916,2749.6,2749.5,0.001]
[1763799380685,0.897104,2749.6,2749.5,0.001]
[1763799380838,1.23252985,2749.6,2749.5,0.001]
[1763799382981,1.80332775,2749.6,2749.5,0.001]
[1763799383177,1.99596053,2749.6,2749.5,0.001]
[1763799383591,1.42516263,2749.6,2749.5,0.001]
[1763799385970,1.23555587,2749.6,2749.5,0.001]
[1763799386172,0.0131,2749.6,2749.5,0.001]
[1763799386371,0.4916,2749.6,2749.5,0.001]
[1763799386570,1.06235317,2749.6,2749.5,0.001]
[1763799386785,1.10781432,2749.6,2749.5,0.001]
[1763799387577,1.51331832,2749.6,2749.5,0.001]
[1763799388394,1.06235317,2749.6,2749.5,0.001]
[1763799388598,1.10781432,2749.6,2749.5,0.001]
[1763799389197,0.58385317,2749.6,2749.5,0.001]
[1763799389404,0.0131,2749.6,2749.5,0.001]
[1763799390017,0.123,2749.7,2749.5,0.4833]
[1763799390216,0.9068,2749.6,2749.5,0.001]
[1763799391619,0.123,2749.7,2749.5,0.4833]
[1763799391988,0.123,2749.7,2749.5,0.001]
[1763799392400,0.478,2749.9,2749.5,0.001]
[1763799392588,0.123,2749.8,2749.5,0.001]
[1763799393118,0.123,2749.8,2749.7,0.4823]
[1763799393304,0.002,2750.1,2749.7,0.4823]
[1763799393517,0.4805,2750.1,2749.7,0.4823]
[1763799394185,0.4288,2749.8,2749.5,0.001]
[1763799394720,0.9068,2749.8,2749.5,0.001]
[1763799394885,0.4288,2749.8,2749.5,0.001]
[1763799395314,0.002,2750.1,2749.7,0.4823]
[1763799395922,0.002,2750.1,2749.7,0.9606]
[1763799396410,0.002,2750.1,2750.0,0.4815]
[1763799396798,0.002,2750.1,2750.0,0.9598]
[1763799398318,0.4787,2750.1,2749.5,0.4793]
[1763799400217,0.002,2750.1,2750.0,0.4815]
[1763799400599,0.002,2750.1,2750.0,0.9598]
[1763799402236,0.002,2750.1,2750.0,1.43173597]
[1763799402640,0.002,2750.1,2750.0,0.9598]
[1763799402841,0.002,2750.1,2750.0,4.7618]
[1763799403505,0.002,2750.1,2750.0,3.802]
[1763799404118,0.4392,2750.1,2749.5,0.001]
[1763799404323,0.8918,2750.1,2749.5,0.001]
[1763799405244,0.4526,2750.0,2749.5,0.001]
[1763799405720,0.4374,2749.6,2749.5,0.001]
[1763799406256,0.8899,2749.6,2749.5,0.001]
[1763799407224,1.0129,2749.6,2749.5,0.001]
[1763799407435,0.5604,2749.6,2749.5,0.001]
[1763799407639,0.14779623,2750.1,2749.5,0.001]
[1763799407815,0.123,2749.9,2749.5,0.001]
[1763799408691,0.002,2750.1,2749.6,0.4783]
[1763799409324,0.4548,2750.1,2749.5,0.001]
[1763799409924,0.002,2750.1,2749.5,0.001]
[1763799410251,0.002,2750.1,2749.5,0.4793]
[1763799410752,0.4548,2750.1,2749.5,0.001]
[1763799411744,0.002,2750.1,2749.5,0.4793]
[1763799415192,0.002,2750.1,2750.0,0.4815]
[1763799417285,0.002,2750.1,2750.0,0.9598]
[1763799417505,0.002,2750.1,2750.0,0.4815]
[1763799421304,0.002,2750.1,2750.0,0.9598]
[1763799422513,0.002,2750.1,2750.0,1.14647926]
[1763799423270,0.002,2750.1,2750.0,0.66817926]
[1763799423484,0.002,2750.1,2750.0,0.4815]
[1763799423686,0.002,2750.1,2749.7,0.4783]
[1763799424014,0.4392,2750.1,2749.7,0.4783]
[1763799425294,0.4526,2749.8,2749.5,0.001]
[1763799425492,0.0044,2749.6,2749.5,0.001]
[1763799426000,0.4547,2749.9,2749.5,0.498]
[1763799426676,0.002,2750.1,2749.5,0.9553]
[1763799427076,0.4567,2750.1,2749.5,0.498]
[1763799427272,0.4353,2749.6,2749.5,0.001]
[1763799427726,0.8898,2749.6,2749.5,0.001]
[1763799429128,0.4353,2749.6,2749.5,0.001]
[1763799429329,0.002,2750.1,2749.5,0.9553]
[1763799429694,0.002,2750.1,2749.5,0.498]
[1763799429695,0.4567,2750.1,2749.5,0.498]
[1763799429992,0.4353,2749.6,2749.5,0.001]
[1763799431509,0.8898,2749.6,2749.5,0.001]
[1763799433097,1.86604017,2749.6,2749.5,0.001]
[1763799433336,1.86604017,2749.6,2749.2,0.001]
[1763799433337,1.31249664,2749.5,2749.2,0.001]
[1763799433496,0.0045,2749.3,2749.2,0.001]
[1763799434018,0.4592,2749.3,2749.2,0.001]
[1763799434408,0.123,2749.6,2749.2,0.001]
[1763799434735,0.4656,2749.3,2749.2,0.001]
[1763799435229,0.8902,2749.3,2749.2,0.001]
[1763799435925,0.4656,2749.3,2749.2,0.001]
[1763799436328,0.8902,2749.3,2749.2,0.001]
[1763799436531,0.14779464,2750.1,2749.2,0.498]
[1763799436830,0.5777,2750.0,2749.2,0.498]
[1763799437256,0.4547,2749.9,2749.2,0.498]
[1763799438101,0.04545785,2749.8,2749.2,0.001]
[1763799438296,0.4353,2749.3,2749.2,0.001]
[1763799440545,0.8898,2749.3,2749.2,0.001]
[1763799442609,0.123,2749.5,2749.2,0.498]
[1763799442934,0.4656,2749.3,2749.2,0.001]
[1763799446202,0.8902,2749.3,2749.2,0.001]
[1763799449034,1.295704,2749.3,2749.2,0.001]
[1763799450908,1.67652208,2749.3,2749.2,0.001]
[1763799451110,1.94717355,2749.3,2749.2,0.001]
[1763799451311,0.405504,2749.2,2749.1,0.001]
[1763799451568,0.405504,2749.2,2748.9,0.001]
[1763799451569,0.405504,2749.0,2748.9,0.001]
[1763799451723,1.34042705,2749.0,2748.9,0.001]
[1763799451911,1.79512705,2749.0,2748.9,0.001]
[1763799452105,3.43548514,2749.0,2748.9,0.001]
[1763799452723,4.20766221,2749.0,2748.9,0.001]
[1763799454050,0.405504,2748.8,2748.6,0.001]
[1763799454235,1.10549264,2748.7,2748.6,0.001]
[1763799454436,2.58880295,2748.7,2748.6,0.001]